Cogmind - Beta 13 @@@ ROGUE MODE // 2024.07.13 @ 01:20:45 Player: Heclapar Result: Destroyed by 0N-20C(R) with Subdweller Machine Gun Performance ------------- Evolutions (0) 0 Regions Visited (3) 600 Robots Destroyed (31) 155 Value Destroyed (748) 748 Prototype IDs (0) 0 Alien Tech Used (0) 0 Bonus (0) 0 TOTAL SCORE: 1503 Bonus ------- None Cogmind --------- Core Integrity 0/250 Matter 298/300 Energy 92/100 System Corruption 0% Temperature Cool (0) Movement Rolling (115) Ox1 Location -10/Subcaves Parts ------- > --- POWER (1) -------- (None) > --- PROPULSION (2) --- Compact Wheel > --- UTILITY (2) ------ Large Storage Unit Weapon Shielding > --- WEAPON (2) ------- Subdweller Laser Light Assault Rifle > --- INVENTORY (15) --- Subdweller Power Source Improved Heat Sink Huge Storage Unit Signal Interpreter Heavy Riot Gun Medium Laser Small Laser Small Laser Beam Cannon Subdweller Beam Cannon Grenade Launcher Plasma Flamer Scrap Shield Fragment (46) Peak State ------------ > --- POWER ------------ Subdweller Power Source > --- PROPULSION ------- Aluminum Leg Aluminum Leg > --- UTILITY ---------- Large Storage Unit Weapon Shielding > --- WEAPON ----------- Subdweller Laser Light Assault Rifle > --- INVENTORY -------- Light Ion Engine Compact Wheel Compact Wheel Improved Heat Sink Huge Storage Unit Signal Interpreter Medium Laser Small Laser Small Laser Beam Cannon Grenade Launcher Plasma Flamer Scrap Shield Fragment [Rating: 11] Favorites ----------- Power Light Ion Engine Engine Light Ion Engine Propulsion Aluminum Leg Leg Aluminum Leg Wheel Compact Wheel Utility Large Storage Unit Device Sensor Array Storage Large Storage Unit Protection Weapon Shielding Weapon Assault Rifle Energy Gun Subdweller Laser Ballistic Gun Assault Rifle Launcher Grenade Launcher Build | -11 -10 -10 -10 ------- Run | Yrd Mat Min Sub Slots Evolved . | . . . . Power . | . . . . Propulsion . | . . . . Utility . | . . . . Weapon . | . . . . Parts Attached 20 | . 12 2 6 Power 3 | . . . 3 Engine 3 | . . . 3 Core . | . . . . Reactor . | . . . . Propulsion 2 | . . . 2 Treads . | . . . . Leg . | . . . . Wheel 2 | . . . 2 Hover . | . . . . Flight . | . . . . Utility 4 | . 4 . . Device 2 | . 2 . . Storage 1 | . 1 . . Processor . | . . . . Hackware . | . . . . Protection 1 | . 1 . . Artifact . | . . . . Weapon 11 | . 8 2 1 Energy Gun 2 | . 1 . 1 Energy Cannon . | . . . . Ballistic Gun 5 | . 4 1 . Ballistic Cannon . | . . . . Launcher 4 | . 3 1 . Special Weapon . | . . . . Impact Weapon . | . . . . Slashing Weapon . | . . . . Piercing Weapon . | . . . . Special Melee Weapon . | . . . . Unidentified Prototypes . | . . . . Parts Lost 6 | . . . 6 Power 3 | . . . 3 Propulsion 3 | . . . 3 Utility . | . . . . Weapon . | . . . . Highest Loss Streak 3 | . . . 3 To Critical Strikes . | . . . . Average Slot Usage (%) 97 | . 95 100 98 Engine 13 | . 14 14 13 Leg 26 | . 28 28 21 Wheel 1 | . . . 5 Device 4 | . 7 . . Storage 14 | . 14 14 14 Protection 7 | . 2 14 14 Energy Gun 4 | . 3 . 8 Ballistic Gun 22 | . 23 25 19 Naked Turns . | . . . . Heaviest Build 31 | 11 31 29 31 Greatest Support 32 | 20 20 20 32 Greatest Overweight (x) 3 | . 1 1 3 Average Overweight (x) . | . . 1 . Largest Inventory Capacity 15 | . 15 15 15 Average Capacity 14 | . 14 15 15 Most Carried 15 | . 15 13 15 Average Carried 11 | . 10 12 13 Final Capacity 15 | 8 15 15 15 Final Carried 13 | 6 11 13 13 Class Distribution -------------------- 100% | Mutant Dominant Class ---------------- Mutant | -10/Materials Mutant | -10/Mines Mutant | -10/Subcaves Resources | -11 -10 -10 -10 ----------- Run | Yrd Mat Min Sub Matter Collected 722 | 200 206 30 286 Remotely . | . . . . Salvage Created 797 | . 558 9 230 Parts 65 | . 49 4 12 Haulers Intercepted 2 | . 2 . . Recyclers Shooed 1 | . 1 . . Parts Field Recycled . | . . . . Retrieved Matter . | . . . . Parts Self-Destructed 11 | . . . 11 Prevented . | . . . . Kills | -11 -10 -10 -10 ------- Run | Yrd Mat Min Sub Combat Hostiles Destroyed 23 | . 15 3 5 Guns 10 | . 5 . 5 AOE 13 | . 10 3 . Classes Destroyed 8 | . 7 . 1 Worker 3 | . 3 . . Builder 1 | . 1 . . Hauler 2 | . 2 . . Recycler 1 | . 1 . . Watcher 1 | . 1 . . Swarmer 6 | . 3 3 . Grunt 12 | . 12 . . Subdweller 5 | . . . 5 Best Kill Streak 5 | . 5 3 1 Combat Bots Only 5 | . 5 3 1 Max Kills in Single Turn 2 | . 2 2 1 Gunslinging . | . . . . Exploded 2 | . 2 2 . Melee . | . . . . Uniques/NPCs Destroyed . | . . . . Combat | -11 -10 -10 -10 -------- Run | Yrd Mat Min Sub Hostile Shots Fired 86 | . 38 14 34 Missed 24 | . 11 6 7 Damage Taken 941 | . 313 64 564 Core 252 | . 49 7 196 Absorbed by Shields . | . . . . Redirected to Shielding 38 | . . 7 31 Core Remaining (%) 100 | 100 . . . Volleys Fired 88 | . 44 5 39 Largest 2 | . 2 2 2 Hottest 80 | . 60 40 80 Shots Fired 156 | . 71 7 78 Gun 140 | . 58 4 78 Cannon . | . . . . Launcher 16 | . 13 3 . Special . | . . . . Kinetic 100 | . 42 4 54 Thermal 40 | . 16 . 24 Explosive 16 | . 13 3 . Electromagnetic . | . . . . Robot Hit Streak 33 | . 8 . 33 Robot Miss Streak 3 | . 3 1 1 Penetration Max . | . . . . Secondary Targets 1 | . . . 1 Max Gunslinging Chain 1 | . . . 1 Shots Hit Robots 98 | . 38 . 60 Core Hits 53 | . 37 4 12 Critical Kills . | . . . . Critical Parts Destroyed . | . . . . Critical Strikes . | . . . . Melee Attacks . | . . . . Impact . | . . . . Slashing . | . . . . Piercing . | . . . . Sneak Attacks . | . . . . Combat Hostiles . | . . . . Follow-up Attacks . | . . . . Damage Inflicted 2231 | . 1375 133 723 Guns 1134 | . 411 . 723 Cannons . | . . . . Explosions 1097 | . 964 133 . Melee . | . . . . Ramming . | . . . . Kinetic 751 | . 333 . 418 Thermal 383 | . 78 . 305 Explosive 1097 | . 964 133 . Electromagnetic . | . . . . Impact . | . . . . Slashing . | . . . . Piercing . | . . . . Highest Corruption . | . . . . Average Corruption . | . . . . Corruption Purged . | . . . . Corruption Blocked . | . . . . Overload Shots . | . . . . Overflow Damage . | . . . . Projectiles . | . . . . Explosions . | . . . . Melee . | . . . . Knockbacks . | . . . . Impact . | . . . . Kinetic . | . . . . Secondary . | . . . . Self-Inflicted Damage 29 | . 29 . . Shots 2 | . 2 . . Rammed . | . . . . Targets Rammed . | . . . . Kicked . | . . . . Crushed . | . . . . Highest Temperature 12 | . 12 . 9 Average Temperature 5 | . 5 . 7 Received Heat Transfer 135 | . 105 . 30 Siege Activations . | . . . . Robots Corrupted . | . . . . Combat Hostiles . | . . . . Parts Fried . | . . . . Impact Corruptions . | . . . . Robots Melted . | . . . . Combat Hostiles . | . . . . Parts Melted 1 | . . . 1 Heat Transferred 550 | . 175 . 375 Parts Sabotaged . | . . . . Parts Stolen . | . . . . Parts Stripped . | . . . . Power Chain Reactions . | . . . . Alert | -11 -10 -10 -10 ------- Run | Yrd Mat Min Sub Peak Influence 300 | . 300 167 . Initial 81 | . . 81 . Average 153 | . 158 134 . Maximum Alert Level 1 | . 1 . . Low Security (%) 67 | . 60 100 . Level 1 32 | . 39 . . Level 2 . | . . . . Level 3 . | . . . . Level 4 . | . . . . Level 5 . | . . . . High Security . | . . . . Max Security . | . . . . Squads Dispatched 4 | . 4 . . Investigation 2 | . 2 . . Extermination . | . . . . Reinforcement 2 | . 2 . . Assault . | . . . . Garrison . | . . . . Intercept . | . . . . Searches Triggered . | . . . . Construction Impeded . | . . . . Haulers Reinforced . | . . . . Active Scanning Responses . | . . . . Cargo Convoy Interrupts . | . . . . Stealth | -11 -10 -10 -10 --------- Run | Yrd Mat Min Sub Distress Signals 1 | . 1 . . Communications Jammed . | . . . . Distress Signals . | . . . . Times Spotted 34 | . 24 3 7 Peak Tracking Total 5 | . 5 3 2 Tactical Retreats . | . . . . Traps | -11 -10 -10 -10 ------- Run | Yrd Mat Min Sub Traps Triggered 2 | . 2 . . Indirectly . | . . . . Trap Hack Attempts . | . . . . Triggered . | . . . . Disarmed . | . . . . Reprogrammed . | . . . . Reused . | . . . . Traps Extracted . | . . . . Installed . | . . . . Triggered . | . . . . Machines | -11 -10 -10 -10 ---------- Run | Yrd Mat Min Sub Machines Disabled 2 | . 2 . . Max in Single Turn 1 | . 1 . . Machines Repaired . | . . . . Machines Dismantled . | . . . . Machines Sabotaged . | . . . . Overloaded Fab Kills . | . . . . Hacking | -11 -10 -10 -10 --------- Run | Yrd Mat Min Sub Machines Accessed . | . . . . Terminals . | . . . . Fabricators . | . . . . Repair Stations . | . . . . Recycling Units . | . . . . Scanalyzers . | . . . . Garrison Access . | . . . . Total Hacks . | . . . . Successful . | . . . . Failed . | . . . . Catastrophic . | . . . . Database Lockouts . | . . . . Manual . | . . . . Terminals . | . . . . Fabricators . | . . . . Repair Stations . | . . . . Recycling Units . | . . . . Scanalyzers . | . . . . Garrison Access . | . . . . Terminal Hacks . | . . . . Fabricator Hacks . | . . . . Repair Station Hacks . | . . . . Recycling Unit Hacks . | . . . . Scanalyzer . | . . . . Garrison Access Hacks . | . . . . Unauthorized Hacks . | . . . . Terminals . | . . . . Fabricators . | . . . . Repair Stations . | . . . . Recycling Units . | . . . . Scanalyzers . | . . . . Garrison Access . | . . . . Data Cores Recovered . | . . . . Used . | . . . . Hacking Detections . | . . . . Full Trace Events . | . . . . Feedback Events . | . . . . Feedback Blocked . | . . . . Robot Schematics Acquired . | . . . . Robots Built . | . . . . Authchips . | . . . . Time . | . . . . Total Robot Build Rating . | . . . . Part Schematics Acquired . | . . . . Parts Built . | . . . . Authchips . | . . . . Time . | . . . . Total Part Build Rating . | . . . . Parts Repaired . | . . . . Time . | . . . . Parts Recycled . | . . . . Recycled Matter . | . . . . Retrieved Matter . | . . . . Retrieved Components . | . . . . Parts Scanalyzed . | . . . . Part Schematics Acquired . | . . . . Parts Damaged . | . . . . Bothacking | -11 -10 -10 -10 ------------ Run | Yrd Mat Min Sub Used RIF Installer . | . . . . Robots Hacked . | . . . . Non-combat . | . . . . Combat . | . . . . Robot Hacks Applied . | . . . . Relay Couplers Released . | . . . . Fabnet Peak Effective % . | . . . . Robots Rewired . | . . . . Allies Hacked . | . . . . Hacks Repelled . | . . . . Allies | -11 -10 -10 -10 -------- Run | Yrd Mat Min Sub Total Allies . | . . . . Largest Group . | . . . . Highest-Rated Group . | . . . . Highest-Rated Ally . | . . . . Total Orders . | . . . . Ally Attacks . | . . . . Total Damage . | . . . . Kills . | . . . . Allies Corrupted . | . . . . Allies Melted . | . . . . Intel | -11 -10 -10 -10 ------- Run | Yrd Mat Min Sub Robot Analysis Total . | . . . . Derelict Logs Recovered . | . . . . Drone Launches . | . . . . Drone Recoveries . | . . . . Exploration | -11 -10 -10 -10 ------------- Run | Yrd Mat Min Sub Turns Passed 2432 | . 1377 324 731 Spaces Moved 1147 | 1 676 107 363 Core . | . . . . Treads . | . . . . Legs 1041 | 1 676 107 257 Wheels 106 | . . . 106 Hover . | . . . . Flight . | . . . . Fastest Speed 100 | 120 120 190 100 Average Speed 176 | 120 181 190 164 Slowest Speed 330 | 120 190 190 330 Overloaded Moves . | . . . . Propulsion Burnouts . | . . . . Robots Hopped . | . . . . Cave-ins Triggered . | . . . . Exploration Rate (%) 34 | 1 94 22 21 Regions Visited 3 Branch Regions 2 Pre-discovered Areas . | . . . . Known Exits Taken . | . . . . Unknown Exits Taken 3 | 1 1 1 . Scrap Searched 4 | . . 1 3 Spaces Dug . | . . . . Terrain Destroyed 76 | . 56 20 . Melee . | . . . . Projectile . | . . . . AOE 76 | . 56 20 . Terrain Rammed . | . . . . Walls Destroyed . | . . . . Machines Disabled . | . . . . Actions | -11 -10 -10 -10 --------- Run | Yrd Mat Min Sub Total 1402 | . 755 221 426 Wait 127 | . 9 106 12 Move 1144 | . 675 106 363 Hop . | . . . . Pick Up 14 | . 8 2 4 Fast Attach 5 | . 4 . 1 Attach 4 | . . . 4 Detach . | . . . . Swap 11 | . 8 2 1 Drop 9 | . 7 . 2 Fire 88 | . 44 5 39 Melee . | . . . . Ram . | . . . . Kick . | . . . . Crush . | . . . . Escape Stasis . | . . . . Rewire . | . . . . Trap . | . . . . Miscellaneous . | . . . . Route ------- -11/Scrapyard -10/Materials (discovered 4 exits: [*Mat x3] / [*Min]) -10/Mines -10/Subcaves History --------- Turn | Location | Event 1 | -11/Scrapyard | Discovered new exit (range 0) 1 | -11/Scrapyard | Entered Materials 60 | -10/Materials | Discovered new exit (range 10) 203 | -10/Materials | Discovered new exit (range 16) 312 | -10/Materials | Build established: Mutant 566 | -10/Materials | Discovered new exit (range 10) 726 | -10/Materials | Discovered new exit (range 16) 1378 | -10/Materials | Entered Mines 1379 | -10/Mines | Assembled infested the area 1434 | -10/Mines | A weapon hastily lodged in a ceiling crevice suddenly fell to the ground 1696 | -10/Mines | Discovered new exit (range 3) 1702 | -10/Mines | Entered Subcaves 1970 | -10/Subcaves | Shifting Twisted Machinery released Sub. Laser 2211 | -10/Subcaves | Core integrity fell below 50% 2316 | -10/Subcaves | Lost 3 parts (1p2n) 2430 | -10/Subcaves | Core integrity fell below 20% 2433 | -10/Subcaves | Destroyed by 0N-20C(R) with Subdweller Machine Gun Last Messages --------------- 02085_ 5U-KQV(R) destroyed. 02093_ Acquired 14 matter. 02215_ Sub. Monowheel melted. 02215_ 6I-Y8F(R) destroyed. 02215_ W7-L4D(O) collects matter. 02232_ Acquired Hvy. Riot Gun. 02235_ Subatomizers dissect the Sub. Optics. 02266_ Aluminum Leg destroyed. 02285_ Sub. Power Source destroyed. 02285_ 01-NWD(R) destroyed. 02288_ Acquired 19 matter. 02298_ Subatomizers dissect the Sub. Optics. 02298_ Acquired Sub. Power Source. 02305_ Acquired 10 matter. 02307_ W7-L4D(O) collects matter. 02358_ Subatomizers dissect the Disposable Heat Sink. 02414_ Com. Wheel destroyed. 02426_ Lgt. Ion Engine destroyed. Map ----- +----------------------------------------------------+ | ?????????????????????????????????????????????????? | | ?????????????????????????????????????????????????? | | ??????????????????###?##?????????????????????????? | | #?????????????##### ## #?????????????????????????? | | #?????????????# #??????????????????????????? | | #?????????????# #??????????????????????????? | | #?????????????# # # #??????#???????????????????? | | #?????????????# ####????? #???????????????????? | | #?????????????## #???????# #???????????????????? | | ?????????##???## #??????# #????????????????????? | | ???####### #?## ##?????# #?????????????????????? | | ???# ## ###### #??????????????????????? | | #?#"" # #???????????????????????? | | ###""" ## # #???????????????????????? | | """"#????# ### # ###???????????????????????? | | "#????## ### #????????????????????????? | | "#????# ### #????????????????????????? | | "#???## #?# ##????????????????????????? | | """ ##???# ###?# #????????????????????????? | | """"#?#### ## #???# ##????????? ## ???????????? | | #""#### ######### ##??????? ????????????? | | ###### [ # # ##???? ???????????????? | | #???# ## & ### #?????????????????? | | ##??# ### # # #???????????????????? | | ##?# ## ### &##### RR## #???????????????????? | | ### #####?# *#???# @#??????????????????????? | | ## #?????# #???# " #?????????????????????? | | # # #????## ##??##"" #????????????????????? | | #??### #???##"" ???????????????????? | | ##?## ##???# "" ??????????????????? | | # # #?## #???# "" "?????????????????? | | ########### ## #??####"""" ????????????????? | | ?????????# ##?###???????""" ???????????????? | | ?????????# #####??????????????""##??????????????? | | ?????????####????????????????????????????????????? | | ?????????????????????????????????????????????????? | | ?????????????????????????????????????????????????? | | ?????????????????????????????????????????????????? | | ?????????????????????????????????????????????????? | | ?????????????????????????????????????????????????? | | ?????????????????????????????????????????????????? | | ?????????????????????????????????????????????????? | | ?????????????????????????????????????????????????? | | ?????????????????????????????????????????????????? | | ?????????????????????????????????????????????????? | | ?????????????????????????????????????????????????? | | ?????????????????????????????????????????????????? | | ?????????????????????????????????????????????????? | | ?????????????????????????????????????????????????? | | | +----------------------------------------------------+ Best States ------------- Heat Dissipation 25 Energy Generation 15 Energy Capacity 200 Matter Stores 300 Matter Capacity 300 Sight Range 16 Robot Scan Range 14 Terrain Scan Density 10 Weapon Shielding 33 Evasion (%) 55 Item Schematics ----------------- None Robot Schematics ------------------ None Fabricated ------------ Nothing Alien Tech Used ----------------- None Achievements -------------- None Challenges ------------ None Game ------ Seed SigixEncryptedRegenerator Manual? 0 Play Time 00:12:26 Cumulative 76.3 hours Start 2024.07.13 @ 01:10:49 End 2024.07.13 @ 01:20:45 Sessions 1 Manual Loads 0 Difficulty Rogue Special Mode None Game No. 90 Rogue 90 Adventurer 0 Explorer 0 Win Type - Total 0 Types 0/0/0/0/0/0/0/0/0 Lore% 41 Gallery% 56 Achievement% 51 Wizard Run 0 Options --------- Layout 1 ASCII 0 Keyboard 0 Movement Mouse Keybinds 0 Fullscreen 1 Font 32/SmallcapsGlow Map View 50x35 Zoom Use 0% Tactical HUD 1 Map Filters NONE Filters NONE Steam 1 RUN: f4739bdb-25d4-4c51-a503-86f3853bb9b0